bitfinex/quotes_BTCUSD_20250614
["timestamp","ask_amount","ask_price","bid_price","bid_amount"]
[1749893633521,1.9995739,105070.0,105060.0,0.22784554]
[1749893633743,1.9995739,105070.0,105060.0,0.24569275]
[1749893634372,1.9995739,105070.0,105060.0,0.22784554]
[1749893634576,1.9995739,105070.0,105060.0,0.23676915]
[1749893634783,1.9995739,105070.0,105060.0,0.24569275]
[1749893635204,1.9995739,105070.0,105060.0,0.26472853]
[1749893635411,1.9995739,105070.0,105060.0,0.26318132]
[1749893635622,1.9995739,105070.0,105060.0,0.28102826]
[1749893636034,1.81573136,105070.0,105060.0,0.33688202]
[1749893636210,2.00909136,105070.0,105060.0,0.32855289]
[1749893636449,2.00909136,105070.0,105060.0,0.34639981]
[1749893636655,2.00909136,105070.0,105060.0,0.27888409]
[1749893636785,2.00909136,105070.0,105060.0,0.29673694]
[1749893637650,2.00909136,105070.0,105060.0,0.26043985]
[1749893637860,2.00909136,105070.0,105060.0,0.2782927]
[1749893638072,2.00909136,105070.0,105060.0,0.26043985]
[1749893638282,2.00909136,105070.0,105060.0,0.28721912]
[1749893638507,2.00909136,105070.0,105060.0,0.26936627]
[1749893638830,2.00909136,105070.0,105060.0,0.27770121]
[1749893639033,2.00909136,105070.0,105060.0,0.24570121]
[1749893639034,1.99005689,105070.0,105060.0,0.24570121]
[1749893639262,1.99005689,105070.0,105060.0,0.23677481]
[1749893639477,1.99005689,105070.0,105060.0,0.22784837]
[1749893639682,1.99005689,105070.0,105060.0,0.22784839]
[1749893639896,1.99005689,105070.0,105060.0,0.24570129]
[1749893640306,1.99005689,105070.0,105060.0,0.22784839]
[1749893640534,1.99005689,105070.0,105060.0,0.22783213]
[1749893640737,1.99005689,105070.0,105060.0,0.23674233]
[1749893640943,1.99005689,105070.0,105060.0,0.24565252]
[1749893641411,1.99005689,105070.0,105060.0,0.23674234]
[1749893641614,1.99005689,105070.0,105060.0,0.23735014]
[1749893641859,1.99005689,105070.0,105060.0,0.2373501]
[1749893642526,1.99005689,105070.0,105060.0,0.22843994]
[1749893642725,1.99005689,105070.0,105060.0,0.23735011]
[1749893642941,1.99005689,105070.0,105060.0,0.22843994]
[1749893643151,1.99005689,105070.0,105060.0,0.23735011]
[1749893643357,1.99005689,105070.0,105060.0,0.22843994]
[1749893643775,1.99005689,105070.0,105060.0,0.23735011]
[1749893644224,1.99005689,105070.0,105060.0,0.22843994]
[1749893644434,1.99005689,105070.0,105060.0,0.2373501]
[1749893644852,1.99005689,105070.0,105060.0,0.22843994]
[1749893645061,1.99005689,105070.0,105060.0,0.28426405]
[1749893645524,1.99005689,105070.0,105060.0,0.27474605]
[1749893645740,1.99005689,105070.0,105060.0,0.26583589]
[1749893645930,1.99005689,105070.0,105060.0,0.27474605]
[1749893646177,1.99005689,105070.0,105060.0,0.26583589]
[1749893646404,1.99005689,105070.0,105060.0,0.28426397]
[1749893646636,1.99005689,105070.0,105060.0,0.2753538]
[1749893647085,1.99005689,105070.0,105060.0,0.28426397]
[1749893647277,1.99005689,105070.0,105060.0,0.22843985]
[1749893647490,1.99005689,105070.0,105060.0,0.21892194]
[1749893648339,1.99005689,105070.0,105060.0,0.22783213]
[1749893648552,1.99005689,105070.0,105060.0,0.23735013]
[1749893648990,1.99005689,105070.0,105060.0,0.22843994]
[1749893649413,1.99005689,105070.0,105060.0,0.23735013]
[1749893650534,1.99005689,105070.0,105060.0,0.21892194]
[1749893650755,1.99005689,105070.0,105060.0,0.22783213]
[1749893651403,1.99005689,105070.0,105060.0,0.20879586]
[1749893651629,2.00745689,105070.0,105060.0,0.21831409]
[1749893651813,2.00745689,105070.0,105060.0,0.21831419]
[1749893651955,2.00745689,105070.0,105060.0,0.20940385]
[1749893652157,2.00745689,105070.0,105060.0,0.21831419]
[1749893652446,2.05584138,105070.0,105050.0,0.20930817]
[1749893652656,1.83082849,105060.0,105050.0,0.22773776]
[1749893652864,1.83246477,105060.0,105050.0,0.23725669]
[1749893653095,1.83246477,105060.0,105050.0,0.25570223]
[1749893654858,1.27741236,105060.0,105050.0,0.25570223]
[1749893655059,1.27741236,105060.0,105050.0,0.24677544]
[1749893655268,1.27741236,105060.0,105050.0,0.25570223]
[1749893656137,1.27741236,105060.0,105050.0,0.24677544]
[1749893656877,1.27741236,105060.0,105050.0,0.25570224]
[1749893657302,1.07752659,105060.0,105050.0,0.32047859]
[1749893657520,1.08704486,105060.0,105050.0,0.32940538]
[1749893657736,1.08704486,105060.0,105050.0,0.32940537]
[1749893657973,1.08704486,105060.0,105050.0,0.26522086]
[1749893658194,1.08704486,105060.0,105050.0,0.26521519]
[1749893658420,1.08704486,105060.0,105050.0,0.236659]
[1749893658675,1.27741226,105060.0,105050.0,0.236659]
[1749893658870,1.26789435,105060.0,105050.0,0.22773789]
[1749893659079,1.26789435,105060.0,105050.0,0.236659]
[1749893659499,1.26789435,105060.0,105050.0,0.22714009]
[1749893659500,1.25837626,105060.0,105050.0,0.22714009]
[1749893659790,1.24885808,105060.0,105050.0,0.21821898]
[1749893660002,1.24885808,105060.0,105050.0,0.22714009]
[1749893660760,1.23933981,105060.0,105050.0,0.22714028]
[1749893661270,1.23933981,105060.0,105050.0,0.2271403]
[1749893661629,1.23933981,105060.0,105050.0,0.22714031]
[1749893662053,1.82829222,105060.0,105050.0,0.01831436]
[1749893662256,1.82829222,105060.0,105050.0,0.02723557]
[1749893662459,1.82829222,105060.0,105050.0,0.02723597]
[1749893662663,1.82829222,105060.0,105050.0,0.02723602]
[1749893662888,1.82829222,105060.0,105050.0,0.01831436]
[1749893663123,1.82829222,105060.0,105050.0,0.02723602]
[1749893663680,1.82829222,105060.0,105050.0,0.01831436]
[1749893663886,1.82829222,105060.0,105050.0,0.02723602]
[1749893664088,1.82829222,105060.0,105050.0,0.02723603]
[1749893664288,1.82829222,105060.0,105050.0,0.01831436]
[1749893664924,1.82829222,105060.0,105050.0,0.04507937]
[1749893665161,1.82829222,105060.0,105050.0,0.02723603]
[1749893665334,1.82829222,105060.0,105050.0,0.01831436]
[1749893665537,1.82829222,105060.0,105050.0,0.04507937]
[1749893665712,1.82829222,105060.0,105050.0,0.02723603]
[1749893665938,1.82829222,105060.0,105050.0,0.04507937]
[1749893666578,1.82829222,105060.0,105050.0,0.01831436]
[1749893666790,1.82829222,105060.0,105050.0,0.02723603]
[1749893667004,1.82829222,105060.0,105050.0,0.04507937]
[1749893667433,1.82829222,105060.0,105050.0,0.04507938]
[1749893667646,1.82829222,105060.0,105050.0,0.0361577]
[1749893667858,1.82829222,105060.0,105050.0,0.03615776]
[1749893668059,1.82829222,105060.0,105050.0,0.04507946]
[1749893668493,1.82829222,105060.0,105050.0,0.03615776]
[1749893668687,1.82829222,105060.0,105050.0,0.04507946]
[1749893669965,1.82829222,105060.0,105050.0,0.02723606]
[1749893670203,1.82829222,105060.0,105050.0,0.04507946]
[1749893670414,1.82829222,105060.0,105050.0,0.04509079]
[1749893670639,1.82829222,105060.0,105050.0,0.02724172]
[1749893670861,1.82829222,105060.0,105050.0,0.06295118]
[1749893671127,1.82829222,105060.0,105050.0,0.04509645]
[1749893671343,0.7181874,105060.0,105050.0,0.06295118]
[1749893671567,1.82829222,105060.0,105050.0,0.06295118]
[1749893671782,1.82829222,105060.0,105050.0,0.05402382]
[1749893672034,1.82829222,105060.0,105050.0,0.06294073]
[1749893672256,1.82829222,105060.0,105050.0,0.03616909]
[1749893672486,1.27323981,105060.0,105050.0,0.08075366]
[1749893672706,1.82829222,105060.0,105050.0,0.03616909]
[1749893672891,1.82829222,105060.0,105050.0,0.06291983]
[1749893673347,1.82829222,105060.0,105050.0,0.03616909]
[1749893673561,1.82829222,105060.0,105050.0,0.045086]
[1749893673976,1.82829222,105060.0,105050.0,0.06291983]
[1749893674192,1.82829222,105060.0,105050.0,0.045086]
[1749893674409,1.82829222,105060.0,105050.0,0.05400292]
[1749893674620,1.82829222,105060.0,105050.0,0.03616909]
[1749893674825,1.82829222,105060.0,105050.0,0.06291983]
[1749893675034,1.82829222,105060.0,105050.0,0.045086]
[1749893675461,1.82829222,105060.0,105050.0,0.06291983]
[1749893675871,1.82829222,105060.0,105050.0,0.045086]
[1749893676119,1.82829222,105060.0,105050.0,0.06291983]
[1749893676556,0.7181874,105060.0,105050.0,0.05400292]
[1749893676781,1.82829222,105060.0,105050.0,0.06954135]
[1749893676996,1.82829222,105060.0,105050.0,0.06291983]
[1749893677198,1.82829222,105060.0,105050.0,0.03616909]
[1749893677405,1.82829222,105060.0,105050.0,0.045086]
[1749893677614,1.82829222,105060.0,105050.0,0.06291983]
[1749893677822,1.82829222,105060.0,105050.0,0.05400292]
[1749893678032,1.82829222,105060.0,105050.0,0.06291983]
[1749893678233,1.82829222,105060.0,105050.0,0.05400292]
[1749893678449,1.82829222,105060.0,105050.0,0.06291983]
[1749893679731,1.85059222,105060.0,105050.0,0.06291983]
[1749893679957,1.27873981,105060.0,105050.0,0.06291983]
[1749893680162,1.27873981,105060.0,105050.0,0.05400292]
[1749893680404,1.27873981,105060.0,105050.0,0.0629198]
[1749893680614,1.27873981,105060.0,105050.0,0.09444831]
[1749893680817,1.27873981,105060.0,105050.0,0.0629198]
[1749893681042,1.27873981,105060.0,105050.0,0.04508593]
[1749893681668,1.27873981,105060.0,105050.0,0.06291962]
[1749893682080,1.27873981,105060.0,105050.0,0.03616909]
[1749893682319,1.27873981,105060.0,105050.0,0.05400278]
[1749893682525,1.27873981,105060.0,105050.0,0.06291962]
[1749893682647,1.27873981,105060.0,105050.0,0.05400278]
[1749893682845,1.27873981,105060.0,105050.0,0.03616909]
[1749893683048,1.83379222,105060.0,105050.0,0.06291962]
[1749893683250,1.83379222,105060.0,105050.0,0.03616909]
[1749893683493,1.27873981,105060.0,105050.0,0.04508593]
[1749893683698,1.27873981,105060.0,105050.0,0.06291962]
[1749893684440,1.27873981,105060.0,105050.0,0.06291974]
[1749893684643,1.27873981,105060.0,105050.0,0.0540029]
[1749893685002,1.27873981,105060.0,105050.0,0.04508599]
[1749893685207,1.27873981,105060.0,105050.0,0.0629198]
[1749893685624,1.27873981,105060.0,105050.0,0.06291911]
[1749893685797,1.27873981,105060.0,105050.0,0.05400244]
[1749893686003,1.27873981,105060.0,105050.0,0.05400239]
[1749893686412,1.27873981,105060.0,105050.0,0.04508574]
[1749893686572,1.27873981,105060.0,105050.0,0.06291904]
[1749893686771,1.27873981,105060.0,105050.0,0.05400239]
[1749893686998,1.27873981,105060.0,105050.0,0.06291904]
[1749893687178,1.83379222,105060.0,105050.0,0.06291904]
[1749893687965,1.83379222,105060.0,105050.0,0.04508574]
[1749893688169,1.83379222,105060.0,105050.0,0.06293999]
[1749893688376,1.85657299,105060.0,105050.0,0.06293999]
[1749893688611,1.85119222,105060.0,105050.0,0.0629507]
[1749893688808,1.85119222,105060.0,105050.0,0.04509632]
[1749893689010,1.85119222,105060.0,105050.0,0.0629507]
[1749893689218,1.87397472,105060.0,105050.0,0.06295096]
[1749893689424,1.87397472,105060.0,105050.0,0.03616909]
[1749893690004,1.85119222,105060.0,105050.0,0.05402375]
[1749893690218,1.85119222,105060.0,105050.0,0.0629506]
[1749893690625,1.8739768,105060.0,105050.0,0.06295096]
[1749893690838,1.8739768,105060.0,105050.0,0.03616909]
[1749893691069,1.8739768,105060.0,105050.0,0.06295036]
[1749893691473,1.8903768,105060.0,105050.0,0.04509571]
[1749893691697,1.8903768,105060.0,105050.0,0.06294895]
[1749893691926,1.8903768,105060.0,105050.0,0.04509571]
[1749893692155,2.1103768,105060.0,105050.0,0.04509571]
[1749893692362,2.1103768,105060.0,105050.0,0.05402326]
[1749893692571,7.1603768,105060.0,105050.0,0.06295054]
[1749893692815,7.1603768,105060.0,105050.0,0.06295075]
[1749893692993,7.1603768,105060.0,105050.0,0.05402339]
[1749893693188,6.05027198,105060.0,105050.0,0.04509647]
[1749893693436,7.1603768,105060.0,105050.0,0.06295126]
[1749893693855,7.1603768,105060.0,105050.0,0.03616909]
[1749893694058,7.1603768,105060.0,105050.0,0.0540239]
[1749893694261,7.1603768,105060.0,105050.0,0.0629513]
[1749893694481,7.1603768,105060.0,105050.0,0.0540239]
[1749893694732,7.1603768,105060.0,105050.0,0.0629513]
[1749893694935,7.1603768,105060.0,105050.0,0.04509649]
[1749893695358,7.1603768,105060.0,105050.0,0.03617002]
[1749893695583,7.1603768,105060.0,105050.0,0.04509743]
[1749893695805,7.1603768,105060.0,105050.0,0.05402483]
[1749893696016,7.1603768,105060.0,105050.0,0.04509743]
[1749893696223,7.1603768,105060.0,105050.0,0.05402483]
[1749893696467,7.25661856,105060.0,105050.0,0.05402483]
[1749893696678,7.25661856,105060.0,105050.0,0.03617007]
[1749893696899,7.28508153,105060.0,105050.0,0.04509784]
[1749893697121,7.28508153,105060.0,105050.0,0.05402545]
[1749893697350,7.25661856,105060.0,105050.0,0.05402545]
[1749893698234,7.25661856,105060.0,105050.0,0.04509784]
[1749893698717,7.25661856,105060.0,105050.0,0.05402545]
[1749893698938,7.25661856,105060.0,105050.0,0.04509784]
[1749893699370,7.25661856,105060.0,105050.0,0.05402545]
[1749893700442,7.25661856,105060.0,105050.0,0.02724262]
[1749893700658,7.25661856,105060.0,105050.0,0.05402545]
[1749893701098,7.25661856,105060.0,105050.0,0.04509784]
[1749893701307,7.25661856,105060.0,105050.0,0.03617023]
[1749893701523,7.25661856,105060.0,105050.0,0.05402545]
[1749893701952,7.25661856,105060.0,105050.0,0.02724262]
[1749893702173,7.25661856,105060.0,105050.0,0.05402756]
[1749893703052,7.25661856,105060.0,105050.0,0.04509925]
[1749893703270,7.25661856,105060.0,105050.0,0.02724262]
[1749893703484,7.25661856,105060.0,105050.0,0.03617093]
[1749893703726,7.25661856,105060.0,105050.0,0.04509925]
[1749893703944,7.25661856,105060.0,105050.0,0.05402756]
[1749893704376,7.25661856,105060.0,105050.0,0.04509925]
[1749893704605,7.25661856,105060.0,105050.0,0.03617093]
[1749893704851,7.25661856,105060.0,105050.0,0.05402756]
[1749893705089,7.25661856,105060.0,105050.0,0.03617093]
[1749893705301,7.25661856,105060.0,105050.0,0.05402756]
[1749893705770,6.14651374,105060.0,105050.0,0.04509925]
[1749893705991,7.25661856,105060.0,105050.0,0.04509925]
[1749893706265,7.25661856,105060.0,105050.0,0.02724262]
[1749893706490,7.25661856,105060.0,105050.0,0.05402756]
[1749893706935,7.25661856,105060.0,105050.0,0.04509925]
[1749893707167,7.25661856,105060.0,105050.0,0.05402756]
[1749893707380,7.25661856,105060.0,105050.0,0.04509925]
[1749893707618,7.25661856,105060.0,105050.0,0.02724262]
[1749893707832,7.25661856,105060.0,105050.0,0.05402756]
[1749893708042,7.25661856,105060.0,105050.0,0.03617093]
[1749893708256,7.25661856,105060.0,105050.0,0.05402756]
[1749893708467,7.25661856,105060.0,105050.0,0.04509925]
[1749893708677,7.25661856,105060.0,105050.0,0.02724262]
[1749893708885,7.25661856,105060.0,105050.0,0.03617093]
[1749893709093,7.25661856,105060.0,105050.0,0.05402756]
[1749893709307,7.25661856,105060.0,105050.0,0.03617093]
[1749893709734,7.25661856,105060.0,105050.0,0.04509925]
[1749893709955,7.25661856,105060.0,105050.0,0.03617093]
[1749893710171,7.25661856,105060.0,105050.0,0.05402754]
[1749893710390,7.25661856,105060.0,105050.0,0.05402753]
[1749893710603,7.25661856,105060.0,105050.0,0.05402749]
[1749893711059,7.25661856,105060.0,105050.0,0.04509919]
[1749893711281,7.25661856,105060.0,105050.0,0.02724262]
[1749893711498,7.25661856,105060.0,105050.0,0.05402746]
[1749893711725,7.25661856,105060.0,105050.0,0.0361709]
[1749893711948,7.25661856,105060.0,105050.0,0.03617093]
[1749893712579,7.25661856,105060.0,105050.0,0.04509927]
[1749893713214,6.91661856,105060.0,105050.0,0.05402758]
[1749893713642,6.91661856,105060.0,105050.0,0.03617094]
[1749893713985,6.91661856,105060.0,105050.0,0.05402758]
[1749893714530,6.91661856,105060.0,105050.0,0.07188424]
[1749893715205,6.4270568,105060.0,105050.0,0.07188424]
[1749893715418,6.7865768,105060.0,105050.0,0.07985591]
[1749893715651,6.7865768,105060.0,105050.0,0.09645591]
[1749893715862,6.7865768,105060.0,105050.0,0.08752716]
[1749893716081,6.7865768,105060.0,105050.0,0.10538294]
[1749893716288,6.7865768,105060.0,105050.0,0.07859927]
[1749893716503,6.7865768,105060.0,105050.0,0.09645505]
[1749893716717,6.7865768,105060.0,105050.0,0.08752716]
[1749893716923,6.7865768,105060.0,105050.0,0.10538294]
[1749893717135,6.7865768,105060.0,105050.0,0.07859927]
[1749893717628,6.7865768,105060.0,105050.0,0.10538303]
[1749893717890,7.1265768,105060.0,105050.0,0.10538303]
[1749893718329,7.1265768,105060.0,105050.0,0.08752719]
[1749893718547,7.1265768,105060.0,105050.0,0.10538303]
[1749893719014,7.1265768,105060.0,105050.0,0.06295511]
[1749893719275,7.1265768,105060.0,105050.0,0.05402719]
[1749893719523,7.1265768,105060.0,105050.0,0.07188303]
[1749893719767,7.1265768,105060.0,105050.0,0.04509927]
[1749893720021,7.1265768,105060.0,105050.0,0.07188303]
[1749893720257,7.1265768,105060.0,105050.0,0.05402719]
[1749893720513,7.1265768,105060.0,105050.0,0.08752719]
[1749893720726,7.1265768,105060.0,105050.0,0.10538303]
[1749893721793,7.1265768,105060.0,105050.0,0.08752719]
[1749893722006,7.1265768,105060.0,105050.0,0.05402719]
[1749893722218,7.1265768,105060.0,105050.0,0.07188353]
[1749893722430,7.1265768,105060.0,105050.0,0.07188331]
[1749893722867,7.1265768,105060.0,105050.0,0.07188335]
[1749893723295,7.1265768,105060.0,105050.0,0.06295543]
[1749893723508,7.1265768,105060.0,105050.0,0.07188347]
[1749893723721,7.1265768,105060.0,105050.0,0.06295543]
[1749893723961,7.1265768,105060.0,105050.0,0.07188351]
[1749893724614,7.1265768,105060.0,105050.0,0.06295543]
[1749893724821,7.1265768,105060.0,105050.0,0.05402735]
[1749893725074,7.1265768,105060.0,105050.0,0.06295543]
[1749893725274,7.1265768,105060.0,105050.0,0.05402735]
[1749893725512,7.1265768,105060.0,105050.0,0.07188351]
[1749893725939,7.1265768,105060.0,105050.0,0.05402735]
[1749893726166,7.1265768,105060.0,105050.0,0.07188351]
[1749893726409,7.1265768,105060.0,105050.0,0.07188346]
[1749893726639,7.1265768,105060.0,105050.0,0.07188347]
[1749893726880,7.1265768,105060.0,105050.0,0.07188349]
[1749893727319,7.12657672,105060.0,105050.0,0.06295542]
[1749893727542,7.15505735,105060.0,105050.0,0.05402734]
[1749893727767,7.15505735,105060.0,105050.0,0.07188405]
[1749893727981,7.15505735,105060.0,105050.0,0.05402753]
[1749893728262,7.15505735,105060.0,105050.0,0.07188405]
[1749893728700,7.12657672,105060.0,105050.0,0.04009927]
[1749893729125,7.12657672,105060.0,105050.0,0.05795579]
[1749893729344,7.12657672,105060.0,105050.0,0.04009927]
[1749893729571,7.12657672,105060.0,105050.0,0.05795579]
[1749893729787,7.12657672,105060.0,105050.0,0.04009927]
[1749893730247,6.93325672,105060.0,105050.0,0.05795578]
[1749893730457,7.12657672,105060.0,105050.0,0.05795579]
[1749893730690,7.12657672,105060.0,105050.0,0.04009927]
[1749893730931,7.12657672,105060.0,105050.0,0.05795579]
[1749893731359,7.16087672,105060.0,105050.0,0.05795579]
[1749893732027,7.16087672,105060.0,105050.0,0.05795583]
[1749893732453,7.25702594,105060.0,105050.0,0.05795583]
[1749893732666,7.25702594,105060.0,105050.0,0.05795584]
[1749893733094,7.25702594,105060.0,105050.0,0.04009927]
[1749893733351,7.25702594,105060.0,105050.0,0.05795584]
[1749893733788,7.38174833,105060.0,105050.0,0.04009927]
[1749893734226,7.38174833,105060.0,105050.0,0.05795648]
[1749893734473,7.38174833,105060.0,105050.0,0.05795655]
[1749893734704,7.38174833,105060.0,105050.0,0.04009927]
[1749893738899,7.28559911,105060.0,105050.0,0.04009927]
[1749893739788,7.28559911,105060.0,105050.0,0.05795673]
[1749893740454,7.28559911,105060.0,105050.0,0.04009927]
[1749893740712,7.28559911,105060.0,105050.0,0.05795673]
[1749893740980,7.28559911,105060.0,105050.0,0.049028]
[1749893741205,7.28559911,105060.0,105050.0,0.04009927]
[1749893745581,7.28559911,105060.0,105050.0,0.04901877]
[1749893745995,7.28559911,105060.0,105050.0,0.04901875]
[1749893746200,7.28559911,105060.0,105050.0,0.04009927]
[1749893746412,7.26819911,105060.0,105050.0,0.04009927]
[1749893746821,7.26819911,105060.0,105050.0,0.04901875]
[1749893747233,7.26819911,105060.0,105050.0,0.04009927]
[1749893747448,7.26819911,105060.0,105050.0,0.04901875]
[1749893748258,0.77495253,105060.0,105050.0,0.31803313]
[1749893748483,1.19519432,105060.0,105050.0,0.33706828]
[1749893748701,0.69877773,105070.0,105060.0,0.2524214]
[1749893749134,1.23209773,105070.0,105060.0,0.27025533]
[1749893749346,1.82284722,105070.0,105060.0,0.27025512]
[1749893749564,1.48284722,105070.0,105060.0,0.27025507]
[1749893749783,1.66892704,105070.0,105060.0,0.46264605]
[1749893749984,1.66892704,105070.0,105060.0,0.44481238]
[1749893750408,1.67844396,105070.0,105060.0,0.46264605]
[1749893750626,1.12339155,105070.0,105060.0,0.44481238]
[1749893750833,1.12439155,105070.0,105060.0,0.36649683]
[1749893751292,1.13290865,105070.0,105060.0,0.36649683]
[1749893751501,1.13490865,105070.0,105060.0,0.36649683]
[1749893751736,1.13490865,105070.0,105060.0,0.34866316]
[1749893751935,1.69747834,105070.0,105060.0,0.34866316]
[1749893752151,1.69747834,105070.0,105060.0,0.36649683]
[1749893752366,1.69747825,105070.0,105060.0,0.36649683]
[1749893752823,1.68796152,105070.0,105060.0,0.36649683]
[1749893753237,1.8783118,105070.0,105060.0,0.3664974]
[1749893753441,1.8783118,105070.0,105060.0,0.35818152]
[1749893753665,2.0321918,105070.0,105060.0,0.37601531]
[1749893753897,2.0321918,105070.0,105060.0,0.38553317]
[1749893754952,2.0321918,105070.0,105060.0,0.38555118]
[1749893755170,2.0321918,105070.0,105060.0,0.36769934]
[1749893755377,2.0226747,105070.0,105060.0,0.33914561]
[1749893755592,2.01315751,105070.0,105060.0,0.35699754]
[1749893755798,2.01315751,105070.0,105060.0,0.23338567]
[1749893756182,2.00364023,105070.0,105060.0,0.23338567]
[1749893756406,1.99412277,105070.0,105060.0,0.24171956]
[1749893756616,1.99412277,105070.0,105060.0,0.2512379]
[1749893756832,1.99412277,105070.0,105060.0,0.0335]
[1749893757283,1.99412277,105070.0,105060.0,0.05135239]
[1749893757515,1.99412277,105070.0,105060.0,0.0335]
[1749893757735,1.99412277,105070.0,105060.0,0.2238674]
[1749893757956,1.99412277,105070.0,105060.0,0.23338577]
[1749893759199,1.99412277,105070.0,105060.0,0.0335]
[1749893760423,1.99412277,105070.0,105060.0,0.2238674]
[1749893761406,1.99412277,105070.0,105060.0,0.0335]
[1749893761868,2.02684168,105070.0,105060.0,0.0335]
[1749893762092,2.02684168,105070.0,105060.0,0.2238674]
[1749893762517,1.99412277,105070.0,105060.0,0.2238674]
[1749893763387,1.99412277,105070.0,105060.0,0.23338577]
[1749893763838,1.99412277,105070.0,105060.0,0.19988577]
[1749893764534,0.00951809,105060.0,105050.0,0.29234126]
[1749893764760,0.77397417,105060.0,105050.0,0.37906447]
[1749893765642,0.78349208,105060.0,105050.0,0.37906447]
[1749893765881,0.79301045,105060.0,105050.0,0.37906447]
[1749893766089,0.79301045,105060.0,105050.0,0.38106447]
[1749893766308,0.79301045,105060.0,105050.0,0.38306447]
[1749893766557,0.78349254,105060.0,105050.0,0.38306447]
[1749893767034,0.78349254,105060.0,105050.0,0.3925832]
[1749893767816,0.78349254,105060.0,105050.0,0.40210184]
[1749893769001,0.78349254,105060.0,105050.0,0.3925832]
[1749893769534,0.5740885,105060.0,105050.0,0.40210184]
[1749893769952,0.58360632,105060.0,105050.0,0.40210184]
[1749893770153,0.57408814,105060.0,105050.0,0.40210184]
[1749893770352,0.58360623,105060.0,105050.0,0.40210184]
[1749893770987,0.57408814,105060.0,105050.0,0.40210184]
[1749893773279,0.76445554,105060.0,105050.0,0.40210184]
[1749893773485,0.58360632,105060.0,105050.0,0.40210184]
[1749893778586,0.22843968,105060.0,105050.0,0.40210184]
[1749893778798,0.58360632,105060.0,105050.0,0.40210184]
[1749893781331,0.77397372,105060.0,105050.0,0.3925832]
[1749893781533,0.78349199,105060.0,105050.0,0.55598184]
[1749893781783,0.79301036,105060.0,105050.0,0.55598184]
[1749893782495,0.78349263,105060.0,105050.0,0.53694447]
[1749893782698,0.78349263,105060.0,105050.0,0.5464632]
[1749893782995,0.78349263,105060.0,105050.0,0.55598184]
[1749893783779,0.58360686,105060.0,105050.0,0.55598184]
[1749893784757,0.01903573,105060.0,105050.0,0.55598184]
[1749893784973,0.59312441,105060.0,105050.0,0.55598184]
[1749893786324,0.78349181,105060.0,105050.0,0.55598184]
[1749893786532,0.59312441,105060.0,105050.0,0.55598184]
[1749893787299,0.60264268,105060.0,105050.0,0.55598184]
[1749893788152,0.59312441,105060.0,105050.0,0.55598184]
[1749893788360,0.57408814,105060.0,105050.0,0.55598184]
[1749893788568,0.58360632,105060.0,105050.0,0.55598184]
[1749893790178,0.01903573,105060.0,105050.0,0.55598184]
[1749893790405,0.58360623,105060.0,105050.0,0.65213106]
[1749893790615,0.58360623,105060.0,105050.0,0.55598184]
[1749893792718,0.58360605,105060.0,105050.0,0.55598184]
[1749893792936,0.58360587,105060.0,105050.0,0.55598184]
[1749893793171,0.59312396,105060.0,105050.0,0.55598184]
[1749893793370,0.02855346,105060.0,105050.0,0.55598184]
[1749893793584,0.58360587,105060.0,105050.0,0.55598184]
[1749893794434,0.59312396,105060.0,105050.0,0.55598184]
[1749893794659,0.58360587,105060.0,105050.0,0.55598184]
[1749893794892,0.59312396,105060.0,105050.0,0.55598184]
[1749893795111,0.58360587,105060.0,105050.0,0.55598184]
[1749893795329,0.57408796,105060.0,105050.0,0.55598184]
[1749893795772,0.58360596,105060.0,105050.0,0.55598184]
[1749893796397,0.57408796,105060.0,105050.0,0.40210184]
[1749893796579,0.56457014,105060.0,105050.0,0.55614184]
[1749893796737,0.58360587,105060.0,105050.0,0.55614184]
[1749893797143,0.58360587,105060.0,105050.0,0.53828711]
[1749893798236,0.57408796,105060.0,105050.0,0.53828711]
[1749893798399,0.56457014,105060.0,105050.0,0.53828711]
[1749893798607,0.57408805,105060.0,105050.0,0.53828711]
[1749893798763,0.56457014,105060.0,105050.0,0.53828711]
[1749893798975,0.57408805,105060.0,105050.0,0.53828711]
[1749893799395,0.57408796,105060.0,105050.0,0.53828711]
[1749893799616,0.57408796,105060.0,105050.0,0.55609967]
[1749893800474,0.57408796,105060.0,105050.0,0.53824711]
[1749893800700,0.57408796,105060.0,105050.0,0.55609967]
[1749893800913,0.57408796,105060.0,105050.0,0.53824711]
[1749893801130,0.57408796,105060.0,105050.0,0.55609967]
[1749893802449,0.57408796,105060.0,105050.0,0.53824711]
[1749893802672,0.57408796,105060.0,105050.0,0.55609967]
[1749893802951,0.58360596,105060.0,105050.0,0.55609967]
[1749893803179,0.57408796,105060.0,105050.0,0.55609967]
[1749893803363,0.57408796,105060.0,105050.0,0.53824711]
[1749893803568,0.57408796,105060.0,105050.0,0.55609967]
[1749893804580,0.57408796,105060.0,105050.0,0.55609945]
[1749893805207,0.57408796,105060.0,105050.0,0.53824711]
[1749893805630,0.57408796,105060.0,105050.0,0.55609945]
[1749893806444,0.57408796,105060.0,105050.0,0.53824711]
[1749893806643,0.57408796,105060.0,105050.0,0.55609945]
[1749893806847,0.57408796,105060.0,105050.0,0.53824711]
[1749893807076,0.57408796,105060.0,105050.0,0.55609945]
[1749893807482,0.58360587,105060.0,105050.0,0.55609945]
[1749893807683,0.58360587,105060.0,105050.0,0.53824711]
[1749893807863,0.59312405,105060.0,105050.0,0.40209942]
[1749893808097,0.56457014,105060.0,105050.0,0.50482711]
[1749893808303,0.58360596,105060.0,105050.0,0.52267942]
[1749893808503,0.58360596,105060.0,105050.0,0.50482711]
[1749893808888,0.57408796,105060.0,105050.0,0.52267936]
[1749893809236,0.58360596,105060.0,105050.0,0.52267936]
[1749893809680,0.59312414,105060.0,105050.0,0.50482711]
[1749893809881,0.59312414,105060.0,105050.0,0.52267936]
[1749893810083,0.59312414,105060.0,105050.0,0.50482711]
[1749893810359,0.59312414,105060.0,105050.0,0.52267936]
[1749893810894,0.79300981,105060.0,105050.0,0.52267936]
[1749893811475,0.60264241,105060.0,105050.0,0.52267936]
[1749893812161,0.79301045,105060.0,105050.0,0.51316072]
[1749893812497,0.80891045,105060.0,105050.0,0.51316072]
[1749893812719,0.80891045,105060.0,105050.0,0.35928072]
[1749893812938,0.80891045,105060.0,105050.0,0.24400141]
[1749893812939,0.33765326,105060.0,105050.0,0.24400141]
[1749893813152,0.79655645,105060.0,105050.0,0.22614916]
[1749893813375,0.79655645,105060.0,105050.0,0.24400197]
[1749893814008,0.78703818,105060.0,105050.0,0.24400215]
[1749893814218,0.78703818,105060.0,105050.0,0.25352125]
[1749893814449,0.77083818,105060.0,105050.0,0.25352134]
[1749893814657,0.77083818,105060.0,105050.0,0.24518716]
[1749893815075,0.77083818,105060.0,105050.0,0.26304025]
[1749893815284,0.78673818,105060.0,105050.0,0.24518716]
[1749893815500,0.78673818,105060.0,105050.0,0.22614925]
[1749893815709,0.78673818,105060.0,105050.0,0.25352143]
[1749893816388,0.77721981,105060.0,105050.0,0.04409763]
[1749893816622,0.77721981,105060.0,105050.0,0.19869763]
[1749893817578,0.77721981,105060.0,105050.0,0.04409763]
[1749893818482,0.77721981,105060.0,105050.0,0.02624454]
[1749893818717,0.77721981,105060.0,105050.0,0.04409763]
[1749893819157,0.77721981,105060.0,105050.0,0.02624454]
[1749893819367,0.77721981,105060.0,105050.0,0.21663007]